bitfinex-derivatives/quotes_BTCF0:USTF0_20250922
["timestamp","ask_amount","ask_price","bid_price","bid_amount"]
[1758562694073,0.58748566,112550.0,112540.0,0.03964]
[1758562694276,0.55569571,112550.0,112540.0,0.1284257]
[1758562694480,1.44488829,112550.0,112540.0,0.1284257]
[1758562694677,1.44488829,112550.0,112540.0,0.03964]
[1758562694874,1.44480829,112550.0,112540.0,0.03964]
[1758562695074,1.44468829,112550.0,112540.0,0.1284257]
[1758562695773,0.60340829,112550.0,112540.0,0.1284257]
[1758562695971,1.44440829,112550.0,112540.0,0.1284257]
[1758562696175,0.96433264,112550.0,112540.0,0.4892257]
[1758562696477,1.47608701,112550.0,112540.0,0.4892257]
[1758562696678,1.44428939,112550.0,112540.0,0.4892257]
[1758562697881,1.47609358,112550.0,112540.0,0.4892257]
[1758562698285,1.44428939,112550.0,112540.0,0.4892257]
[1758562698681,1.05351044,112550.0,112540.0,0.4892257]
[1758562698874,0.24444201,112550.0,112540.0,0.4892257]
[1758562699078,1.47514106,112550.0,112540.0,0.4892257]
[1758562699282,1.44332949,112550.0,112540.0,0.4892257]
[1758562700083,1.44320949,112550.0,112540.0,0.4892257]
[1758562700787,0.60340949,112550.0,112540.0,0.4892257]
[1758562701087,1.44292949,112550.0,112540.0,0.4892257]
[1758562702883,1.05215054,112550.0,112540.0,0.4892257]
[1758562703189,1.44292949,112550.0,112540.0,0.4892257]
[1758562704594,1.42704817,112550.0,112540.0,0.4892257]
[1758562704783,0.58752817,112550.0,112540.0,0.4892257]
[1758562705087,1.42608817,112550.0,112540.0,0.4892257]
[1758562706694,0.58752817,112550.0,112540.0,0.4892257]
[1758562706895,1.42564817,112550.0,112540.0,0.4892257]
[1758562708194,1.42552817,112550.0,112540.0,0.4892257]
[1758562709393,1.03474922,112550.0,112540.0,0.4892257]
[1758562709597,0.94553132,112550.0,112540.0,0.4892257]
[1758562710099,1.33683027,112550.0,112540.0,0.4892257]
[1758562710298,1.30499901,112550.0,112540.0,0.4892257]
[1758562710694,0.46691901,112550.0,112540.0,0.4892257]
[1758562710893,1.30499901,112550.0,112540.0,0.4892257]
[1758562711297,0.46691901,112550.0,112540.0,0.4892257]
[1758562711497,1.30491901,112550.0,112540.0,0.4892257]
[1758562711697,1.33675027,112550.0,112540.0,0.4892257]
[1758562712596,0.94597132,112550.0,112540.0,0.78226884]
[1758562712794,0.10797132,112550.0,112540.0,0.78226884]
[1758562712995,0.04447568,112550.0,112540.0,1.32531198]
[1758562713295,0.82555568,112550.0,112540.0,1.63531198]
[1758562713497,0.82595568,112550.0,112540.0,1.0492257]
[1758562713799,0.82595568,112550.0,112540.0,1.63531198]
[1758562713999,0.88311568,112550.0,112540.0,1.63531198]
[1758562714297,1.17615882,112550.0,112540.0,1.0492257]
[1758562714501,1.17615882,112550.0,112540.0,1.12226884]
[1758562714698,1.19825882,112550.0,112540.0,0.5792257]
[1758562715003,1.58007976,112550.0,112540.0,0.5792257]
[1758562715199,1.28703662,112550.0,112540.0,0.4888257]
[1758562715400,1.28703662,112550.0,112540.0,0.4892257]
[1758562715797,1.28703662,112550.0,112540.0,0.03964]
[1758562716096,2.23366728,112550.0,112540.0,0.0036]
[1758562716296,2.25146243,112550.0,112540.0,0.0036]
[1758562716702,2.25146243,112550.0,112540.0,0.004]
[1758562716997,2.25146243,112550.0,112540.0,0.0036]
[1758562717199,2.25146243,112550.0,112540.0,0.004]
[1758562717200,2.21963117,112550.0,112540.0,0.004]
[1758562717396,1.63354489,112550.0,112540.0,0.0036]
[1758562717596,2.21963117,112550.0,112540.0,0.004]
[1758562717791,2.26734375,112550.0,112540.0,0.004]
[1758562717991,1.68125747,112550.0,112540.0,0.004]
[1758562718201,2.26734375,112550.0,112540.0,0.004]
[1758562719502,2.01734375,112550.0,112540.0,0.004]
[1758562720295,2.51267431,112550.0,112540.0,0.004]
[1758562720500,0.1108935,112530.0,112520.0,0.0008]
[1758562720694,0.1109014,112520.0,112510.0,0.41682605]
[1758562720893,0.7208236,112520.0,112510.0,0.51682605]
[1758562721906,0.7218236,112520.0,112510.0,0.52782605]
[1758562722102,0.7218236,112520.0,112510.0,0.53282605]
[1758562722599,0.7218236,112520.0,112510.0,0.05099]
[1758562722795,0.75365637,112520.0,112510.0,0.04639]
[1758562723000,0.16857009,112520.0,112510.0,0.04639]
[1758562723207,0.7228236,112520.0,112510.0,0.04639]
[1758562723506,1.64546394,112520.0,112510.0,0.04639]
[1758562723706,1.64446394,112520.0,112510.0,0.03539]
[1758562723902,1.64946394,112520.0,112510.0,0.03639]
[1758562724102,0.79654394,112520.0,112510.0,0.03639]
[1758562724503,1.64882394,112520.0,112510.0,0.03639]
[1758562725010,2.00962394,112520.0,112510.0,0.03639]
[1758562725800,2.01476394,112520.0,112510.0,0.0014]
[1758562726005,2.04659671,112520.0,112510.0,0.0014]
[1758562726205,1.19431671,112520.0,112510.0,0.001]
[1758562726409,2.04575671,112520.0,112510.0,0.0014]
[1758562726609,2.04563671,112520.0,112510.0,0.0014]
[1758562727404,1.19431671,112520.0,112510.0,0.0014]
[1758562727605,1.15734394,112520.0,112510.0,0.03567]
[1758562727806,2.00830394,112520.0,112510.0,0.03567]
[1758562728406,2.00818394,112520.0,112510.0,0.03567]
[1758562729305,2.01332394,112520.0,112510.0,0.0014]
[1758562730600,2.01276394,112520.0,112510.0,0.0014]
[1758562730800,1.73735985,112520.0,112510.0,0.0014]
[1758562731002,2.58863985,112520.0,112510.0,0.0014]
[1758562731207,2.58863985,112520.0,112510.0,0.001]
[1758562731402,2.58863985,112520.0,112510.0,0.0014]
[1758562731905,1.70951043,112520.0,112510.0,0.0014]
[1758562732110,1.44431671,112520.0,112510.0,0.0014]
[1758562732311,2.29547671,112520.0,112510.0,0.0014]
[1758562735509,2.29575671,112520.0,112510.0,0.0014]
[1758562735711,2.29555671,112520.0,112510.0,0.0014]
[1758562736708,1.49202929,112520.0,112510.0,0.0014]
[1758562736913,1.48688929,112520.0,112510.0,0.03546]
[1758562737109,2.33768929,112520.0,112510.0,0.03546]
[1758562737816,2.33768929,112520.0,112510.0,0.0014]
[1758562738217,2.33768929,112520.0,112510.0,0.02275]
[1758562738409,2.33708929,112520.0,112510.0,0.02275]
[1758562738610,2.28937671,112520.0,112510.0,0.02275]
[1758562738814,1.43917671,112520.0,112510.0,0.02275]
[1758562739113,2.28933671,112520.0,112510.0,0.02275]
[1758562739313,1.43917671,112520.0,112510.0,0.02275]
[1758562739514,0.87608929,112520.0,112510.0,0.1242693]
[1758562739713,1.67829671,112520.0,112510.0,0.1242693]
[1758562739917,2.03909671,112520.0,112510.0,0.03546]
[1758562741111,2.08680929,112520.0,112510.0,0.03546]
[1758562741319,2.03909671,112520.0,112510.0,0.03546]
[1758562741511,2.03909671,112520.0,112510.0,0.02275]
[1758562741712,2.03909671,112520.0,112510.0,0.0014]
[1758562741912,1.18917671,112520.0,112510.0,0.02275]
[1758562742114,2.08672929,112520.0,112510.0,0.02275]
[1758562742315,2.08576929,112520.0,112510.0,0.1242693]
[1758562742619,2.08556929,112520.0,112510.0,0.1242693]
[1758562743213,2.05373652,112520.0,112510.0,0.1242693]
[1758562743818,1.69293652,112520.0,112510.0,0.1242693]
[1758562744508,1.72468739,112520.0,112510.0,0.1242693]
[1758562745215,1.69807652,112520.0,112510.0,0.0014]
[1758562749519,2.30420708,112520.0,112510.0,0.0014]
[1758562749714,2.55420708,112520.0,112510.0,0.001]
[1758562750011,2.55420708,112520.0,112510.0,0.0014]
[1758562751319,1.70552708,112520.0,112510.0,0.0014]
[1758562751615,2.55196708,112520.0,112510.0,0.0014]
[1758562754021,2.55104708,112520.0,112510.0,0.0014]
[1758562754312,1.70552708,112520.0,112510.0,0.0014]
[1758562754618,2.25748394,112520.0,112510.0,0.0014]
[1758562755118,2.3210786,112520.0,112510.0,0.0014]
[1758562756323,2.61412174,112520.0,112510.0,0.0014]
[1758562761021,1.76912174,112520.0,112510.0,0.0014]
[1758562761524,2.3190786,112520.0,112510.0,0.0014]
[1758562761919,2.61212174,112520.0,112510.0,0.0014]
[1758562762330,2.3190786,112520.0,112510.0,0.0014]
[1758562762629,2.25548394,112520.0,112510.0,0.0014]
[1758562763533,2.54852708,112520.0,112510.0,0.0014]
[1758562765121,2.61224927,112520.0,112510.0,0.0014]
[1758562766429,2.61116927,112520.0,112510.0,0.0014]
[1758562767029,1.76924927,112520.0,112510.0,0.0014]
[1758562767231,2.61016927,112520.0,112510.0,0.0014]
[1758562767633,0.89011985,112520.0,112510.0,0.02321]
[1758562767831,2.31712613,112520.0,112510.0,0.0014]
[1758562768634,1.47620613,112520.0,112510.0,0.02321]
[1758562768836,2.31704613,112520.0,112510.0,0.02321]
[1758562769133,2.25332394,112520.0,112510.0,0.02321]
[1758562769633,1.41248394,112520.0,112510.0,0.02321]
[1758562769839,2.25316394,112520.0,112510.0,0.02321]
[1758562770740,1.15734394,112520.0,112510.0,0.28587]
[1758562770930,1.63690394,112520.0,112510.0,0.28587]
[1758562771335,0.79654394,112520.0,112510.0,0.28587]
[1758562771535,1.63666394,112520.0,112510.0,0.28587]
[1758562772131,1.63666394,112520.0,112510.0,0.3746793]
[1758562772638,0.60146251,112520.0,112510.0,0.3746793]
[1758562772835,1.44150251,112520.0,112510.0,0.3746793]
[1758562773035,1.44102251,112520.0,112510.0,0.3746793]
[1758562775135,1.44102251,112520.0,112510.0,0.28587]
[1758562776435,0.60146251,112520.0,112510.0,0.28587]
[1758562776731,1.44018251,112520.0,112510.0,0.28587]
[1758562777341,0.60146251,112520.0,112510.0,0.28587]
[1758562777543,1.43990251,112520.0,112510.0,0.1246794]
[1758562777736,0.64926186,112520.0,112510.0,0.1246794]
[1758562777943,0.64926186,112520.0,112510.0,0.7354794]
[1758562778141,1.48730186,112520.0,112510.0,0.7354794]
[1758562778641,1.51916052,112520.0,112510.0,0.7354794]
[1758562779340,1.51916052,112520.0,112510.0,0.4854794]
[1758562780241,1.47136117,112520.0,112510.0,0.4854794]
[1758562780945,1.47064117,112520.0,112510.0,0.4854794]
[1758562784448,1.48658186,112520.0,112510.0,0.4854794]
[1758562787342,1.48658186,112520.0,112510.0,0.39667]
[1758562791050,0.25825701,112520.0,112510.0,0.39667]
[1758562791251,1.48438186,112520.0,112510.0,0.39667]
[1758562792050,1.43658251,112520.0,112510.0,0.39667]
[1758562794449,1.46842378,112520.0,112510.0,0.39667]
[1758562796050,0.63330378,112520.0,112510.0,0.39667]
[1758562796253,1.12366084,112520.0,112510.0,0.39667]
[1758562796452,1.51494569,112520.0,112510.0,0.4854793]
[1758562796752,1.46718378,112520.0,112510.0,0.4854793]
[1758562797446,1.51494569,112520.0,112510.0,0.4854793]
[1758562797644,1.46718378,112520.0,112510.0,0.4854793]
[1758562798051,1.46722378,112520.0,112510.0,0.4854793]
[1758562798853,0.63330378,112520.0,112510.0,0.4854793]
[1758562799151,1.46674378,112520.0,112510.0,0.4854793]
[1758562800253,1.07573893,112520.0,112510.0,0.4854793]
[1758562800642,1.07557893,112520.0,112510.0,0.4854793]
[1758562801246,1.07553893,112520.0,112510.0,0.4854793]
[1758562801450,1.07537893,112520.0,112510.0,0.4854793]
[1758562802055,0.22019893,112520.0,112510.0,1.12648415]
[1758562802256,1.05351893,112520.0,112510.0,1.12648415]
[1758562802962,1.05351893,112520.0,112510.0,0.7354793]
[1758562803162,1.07622893,112520.0,112510.0,0.7354793]
[1758562803862,1.05351893,112520.0,112510.0,0.7354793]
[1758562804763,1.05299893,112520.0,112510.0,0.7354793]
[1758562804956,1.07570893,112520.0,112510.0,0.7354793]
[1758562809362,1.46671378,112520.0,112510.0,0.64667]
[1758562809567,1.46671378,112520.0,112510.0,0.7354771]
[1758562810068,1.46671378,112520.0,112510.0,0.64667]
[1758562810970,1.46671378,112520.0,112510.0,0.7354771]
[1758562812075,1.07570893,112520.0,112510.0,0.7354771]
[1758562812371,1.46671378,112520.0,112510.0,0.7354771]
[1758562813371,1.07570893,112520.0,112510.0,0.7354771]
[1758562813669,1.46671378,112520.0,112510.0,0.7354771]
[1758562814572,1.43487251,112520.0,112510.0,0.7354771]
[1758562815071,1.04386766,112520.0,112510.0,0.7354771]
[1758562815271,1.43239251,112520.0,112510.0,0.7354771]
[1758562815975,1.43239251,112520.0,112510.0,0.4854771]
[1758562816272,1.43239251,112520.0,112510.0,0.4850771]
[1758562816572,1.43239251,112520.0,112510.0,0.4854771]
[1758562817672,0.21106766,112520.0,112510.0,0.4854771]
[1758562817874,1.04098766,112520.0,112510.0,0.87648195]
[1758562818062,1.04098766,112520.0,112510.0,0.4854771]
[1758562821376,0.02983592,112520.0,112510.0,1.42648195]
[1758562821875,0.02983592,112520.0,112510.0,2.25564195]
[1758562822179,0.02983592,112520.0,112510.0,1.42648195]
[1758562822369,0.02983592,112520.0,112510.0,2.25544195]
[1758562822776,0.02983592,112520.0,112510.0,1.42648195]
[1758562822976,0.11863512,112520.0,112510.0,1.0354771]
[1758562823178,0.03030242,112520.0,112510.0,1.42648195]
[1758562826474,0.11910162,112520.0,112510.0,1.42648195]
[1758562827181,0.03030242,112520.0,112510.0,1.0354771]
[1758562827382,0.03030242,112520.0,112510.0,1.42648195]
[1758562828477,0.11910162,112520.0,112510.0,1.42648195]
[1758562829484,0.03030242,112520.0,112510.0,1.42648195]
[1758562830087,0.14012162,112520.0,112510.0,0.7854771]
[1758562830580,0.78112647,112520.0,112510.0,0.4854771]
[1758562830780,0.78112647,112520.0,112510.0,0.5754771]
[1758562830975,0.78112647,112520.0,112510.0,0.5750771]
[1758562831284,1.60896647,112520.0,112510.0,0.5754771]
[1758562831479,1.21788162,112520.0,112510.0,0.5750771]
[1758562831680,1.21788162,112520.0,112510.0,0.7954771]
[1758562831982,0.03030242,112520.0,112510.0,1.18648195]
[1758562834685,0.03030242,112520.0,112510.0,1.08857827]
[1758562837388,0.03030242,112520.0,112510.0,1.09892686]
[1758562837585,0.03030242,112520.0,112510.0,1.08857827]
[1758562841295,0.03030242,112520.0,112510.0,1.38167944]
[1758562841689,0.03030242,112520.0,112510.0,2.20871944]
[1758562842191,0.03030242,112520.0,112510.0,0.7954771]
[1758562842391,0.03030242,112520.0,112510.0,1.91561827]
[1758562842993,0.03030242,112520.0,112510.0,1.08857827]
[1758562843293,0.03030242,112520.0,112510.0,1.91557827]
[1758562843488,0.03030242,112520.0,112510.0,1.08857827]
[1758562843689,0.32340359,112520.0,112510.0,1.91557827]
[1758562844490,0.41220279,112520.0,112510.0,1.08857827]
[1758562845192,0.11910162,112520.0,112510.0,1.08857827]
[1758562845394,0.41220279,112520.0,112510.0,1.08857827]
[1758562846193,0.97632396,112520.0,112510.0,0.7954771]
[1758562846389,0.59442359,112520.0,112510.0,1.08857827]
[1758562846592,0.68322279,112520.0,112510.0,1.08817827]
[1758562846795,0.6931115,112520.0,112510.0,1.08817827]
[1758562846994,0.6931115,112520.0,112510.0,1.08857827]
[1758562847785,0.6043123,112520.0,112510.0,1.08857827]
[1758562849092,2.17780299,112520.0,112510.0,0.70667]
[1758562849301,1.35594299,112520.0,112510.0,0.001]
[1758562849501,2.21474426,112520.0,112510.0,0.0014]
[1758562849796,2.21474426,112520.0,112510.0,0.001]
[1758562850000,1.92164309,112520.0,112510.0,0.0014]
[1758562850589,1.92164309,112520.0,112510.0,0.001]
[1758562850789,1.92168309,112520.0,112510.0,0.0014]
[1758562851298,2.28248309,112520.0,112510.0,0.0014]
[1758562851802,1.45548309,112520.0,112510.0,0.0014]
[1758562852098,2.28248309,112520.0,112510.0,0.0014]
[1758562852899,2.57558426,112520.0,112510.0,0.0014]
[1758562853090,1.74858426,112520.0,112510.0,0.001]
[1758562853291,2.5915049,112520.0,112510.0,0.001]
[1758562853495,2.5915049,112520.0,112510.0,0.0014]
[1758562853696,2.5915049,112520.0,112510.0,0.001]
[1758562853900,2.04840373,112520.0,112510.0,0.0014]
[1758562854095,0.86060373,112520.0,112510.0,0.02326]
[1758562854296,0.85546373,112520.0,112510.0,0.0372]
[1758562854601,1.66649787,112520.0,112510.0,0.0372]
[1758562855101,1.71425978,112520.0,112510.0,0.0372]
[1758562855302,1.71429978,112520.0,112510.0,0.0372]
[1758562856001,1.66653787,112520.0,112510.0,0.0372]
[1758562856699,0.83949787,112520.0,112510.0,0.0372]
[1758562857003,1.66657787,112520.0,112510.0,0.0372]
[1758562857198,0.83949787,112520.0,112510.0,0.0372]
[1758562857590,1.66657787,112520.0,112510.0,0.0372]
[1758562858203,0.83949787,112520.0,112510.0,0.0372]
[1758562858403,1.66657787,112520.0,112510.0,0.0372]
[1758562860402,1.63478182,112520.0,112510.0,0.0372]
[1758562860603,2.25072182,112520.0,112510.0,0.0014]
[1758562860803,2.28251787,112520.0,112510.0,0.0014]
[1758562864801,2.32561904,112520.0,112510.0,0.0014]
[1758562865006,2.37338095,112520.0,112510.0,0.0014]
[1758562865313,2.3415849,112520.0,112510.0,0.001]
[1758562865503,2.3415849,112520.0,112510.0,0.0014]
[1758562865703,1.5145049,112520.0,112510.0,0.0014]
[1758562865904,2.3415849,112520.0,112510.0,0.0014]
[1758562866106,1.5145049,112520.0,112510.0,0.0014]
[1758562866708,2.3415849,112520.0,112510.0,0.0014]
[1758562870609,1.5145049,112520.0,112510.0,0.0014]
[1758562871215,2.03245706,112520.0,112510.0,0.0014]
[1758562871420,2.04844373,112520.0,112510.0,0.0014]
[1758562871714,2.04334373,112520.0,112510.0,0.03657]
[1758562872106,1.24804333,112520.0,112510.0,0.03657]
[1758562872307,1.45710139,112520.0,112510.0,0.03657]
[1758562872507,1.21626373,112520.0,112510.0,0.03657]
[1758562872708,0.85546373,112520.0,112510.0,0.03657]
[1758562872909,1.66652748,112520.0,112510.0,0.03657]
[1758562873109,0.83948748,112520.0,112510.0,0.03657]
[1758562873517,1.71428939,112520.0,112510.0,0.03657]
[1758562874014,1.66652748,112520.0,112510.0,0.03657]
[1758562874415,1.63474182,112520.0,112510.0,0.03657]
[1758562874610,1.68244727,112520.0,112510.0,0.03657]
[1758562875409,1.63474182,112520.0,112510.0,0.03657]
[1758562875809,1.63474182,112520.0,112510.0,0.02278]
[1758562878415,1.34160065,112520.0,112510.0,0.57918117]
[1758562878616,1.38940819,112520.0,112510.0,0.93998117]
[1758562880210,1.38940819,112520.0,112510.0,0.64688]
[1758562880509,1.38940819,112520.0,112510.0,0.93998117]
[1758562880711,1.68250936,112520.0,112510.0,0.93998117]
[1758562880912,1.68250936,112520.0,112510.0,0.64688]
[1758562881917,1.38940819,112520.0,112510.0,0.64688]
[1758562882406,1.38940819,112520.0,112510.0,0.28608]
[1758562882718,1.68250936,112520.0,112510.0,0.64688]
[1758562884418,1.71436658,112520.0,112510.0,0.64688]
[1758562884718,1.68250936,112520.0,112510.0,0.64688]
[1758562884917,1.09630702,112520.0,112510.0,0.64688]
[1758562885118,1.68250936,112520.0,112510.0,0.64688]
[1758562885320,1.71436474,112520.0,112510.0,0.64688]
[1758562887921,1.6665572,112520.0,112510.0,0.64688]
[1758562888423,1.08035486,112520.0,112510.0,0.64688]
[1758562888722,1.6665572,112520.0,112510.0,0.64688]
[1758562889124,0.8395572,112520.0,112510.0,0.64688]
[1758562889328,1.08023486,112520.0,112510.0,0.64688]
[1758562889527,1.6664372,112520.0,112510.0,0.64688]
[1758562892634,1.66636669,112520.0,112510.0,0.64688]
[1758562893326,1.08016435,112520.0,112510.0,0.64688]
[1758562893722,1.66636669,112520.0,112510.0,0.93998117]
[1758562894027,1.37326552,112520.0,112510.0,0.93998117]
[1758562894221,0.25328435,112520.0,112510.0,0.93998117]
[1758562894430,1.37314552,112520.0,112510.0,0.93998117]
[1758562894727,1.08004435,112520.0,112510.0,0.64688]
[1758562895020,0.25328435,112520.0,112510.0,0.64688]
[1758562895228,1.08000435,112520.0,112510.0,0.64688]
[1758562896234,0.95934977,112520.0,112510.0,0.87660193]
[1758562896427,0.10172106,112520.0,112510.0,1.12660193]
[1758562896731,0.10172106,112520.0,112510.0,1.46660193]
[1758562897629,0.11168817,112520.0,112510.0,1.46660193]
[1758562898032,0.01596711,112520.0,112510.0,1.46660193]
[1758562898236,0.0401826,112520.0,112510.0,1.46660193]
[1758562898426,0.03021549,112520.0,112510.0,1.46660193]
[1758562899333,0.03021549,112520.0,112510.0,1.21660193]
[1758562899538,0.03021549,112520.0,112510.0,1.46660193]
[1758562901125,0.03021549,112520.0,112510.0,2.29320193]
[1758562902336,0.03021549,112520.0,112510.0,1.9022873]
[1758562902539,0.03021549,112520.0,112510.0,2.29320193]
[1758562903439,0.03021549,112520.0,112510.0,1.46660193]
[1758562903736,0.03021549,112520.0,112510.0,2.29316193]
[1758562904931,0.03021549,112520.0,112510.0,2.29312193]
[1758562905634,0.03021549,112520.0,112510.0,1.46660193]
[1758562905936,0.03021549,112520.0,112510.0,2.29312193]
[1758562907736,0.006,112520.0,112510.0,2.29312193]
[1758562907933,0.0887893,112540.0,112530.0,0.1241415]
[1758562908133,0.12245059,112540.0,112530.0,2.08374668]
[1758562908431,0.12285059,112540.0,112530.0,2.08374668]
[1758562909140,0.03406129,112540.0,112530.0,2.08374668]
[1758562909640,0.02820555,112540.0,112530.0,2.42374668]
[1758562909844,0.03960555,112540.0,112530.0,2.42474668]
[1758562910533,0.03960555,112540.0,112530.0,1.59826668]
[1758562910736,0.12838915,112540.0,112530.0,1.59826668]
[1758562910941,0.12438915,112540.0,112530.0,2.42666668]
[1758562911139,0.12438915,112540.0,112530.0,1.60026668]
[1758562911343,0.12438915,112540.0,112530.0,2.42666668]
[1758562911642,0.11438915,112540.0,112530.0,2.43566668]
[1758562913141,0.02560555,112540.0,112530.0,1.60926668]
[1758562913341,0.02560555,112540.0,112530.0,2.43562668]
[1758562913542,0.02560555,112540.0,112530.0,2.43558668]
[1758562916143,0.02520555,112540.0,112530.0,2.43558668]
[1758562916345,0.02560555,112540.0,112530.0,2.43558668]
[1758562916830,0.02560555,112540.0,112530.0,2.43550668]
[1758562918250,0.02560555,112540.0,112530.0,2.04459205]
[1758562918544,0.02560555,112540.0,112530.0,2.43550668]
[1758562918743,0.02560555,112540.0,112530.0,1.60926668]
[1758562919044,0.02560555,112540.0,112530.0,2.43546668]
[1758562919539,0.02560555,112540.0,112530.0,1.60926668]
[1758562919845,0.02560555,112540.0,112530.0,2.43542668]
[1758562920845,0.02560555,112540.0,112530.0,1.60926668]
[1758562921047,0.02560555,112540.0,112530.0,2.43538668]
[1758562921342,0.02560555,112540.0,112530.0,1.60926668]
[1758562921545,0.02560555,112540.0,112530.0,2.43538668]
[1758562922437,0.02560555,112540.0,112530.0,1.60926668]
[1758562922644,0.02560555,112540.0,112530.0,2.43538668]
[1758562923646,0.02560555,112540.0,112530.0,1.60926668]
[1758562924044,0.02560555,112540.0,112530.0,2.43530668]
[1758562924742,0.02560555,112540.0,112530.0,1.60926668]
[1758562924945,0.02560555,112540.0,112530.0,2.43530668]
[1758562925149,0.02560555,112540.0,112530.0,1.60926668]
[1758562925347,0.02560555,112540.0,112530.0,2.43526668]
[1758562927551,0.02560555,112540.0,112530.0,1.60926668]
[1758562927851,0.02560555,112540.0,112530.0,2.43526668]
[1758562928951,0.02560555,112540.0,112530.0,1.60926668]
[1758562929142,0.02560555,112540.0,112530.0,2.43522668]
[1758562929555,0.02560555,112540.0,112530.0,2.04431205]
[1758562929743,0.02560555,112540.0,112530.0,2.43522668]
[1758562930051,0.02560555,112540.0,112530.0,2.43518668]
[1758562930253,0.02560555,112540.0,112530.0,2.43558668]
[1758562931946,0.11438915,112540.0,112530.0,2.43558668]
[1758562935553,0.02560555,112540.0,112530.0,2.43558668]
[1758562936150,0.11438925,112540.0,112530.0,2.43558668]
[1758562936344,0.02560555,112540.0,112530.0,2.43558668]
[1758562940046,0.11438935,112540.0,112530.0,2.43558668]
[1758562941851,0.02560555,112540.0,112530.0,2.43558668]
[1758562942054,0.02560555,112540.0,112530.0,1.21875205]
[1758562942255,0.50530398,112540.0,112530.0,2.04439205]
[1758562942556,0.77835398,112540.0,112530.0,1.70435205]
[1758562942756,0.77835398,112540.0,112530.0,1.70395205]
[1758562943056,0.77835398,112540.0,112530.0,1.70435205]
[1758562943952,0.38743935,112540.0,112530.0,1.70435205]
[1758562944456,0.41929473,112540.0,112530.0,1.70435205]
[1758562945649,0.16929473,112540.0,112530.0,1.70395205]
[1758562945854,0.16929473,112540.0,112530.0,1.70435205]
[1758562947857,0.56020936,112540.0,112530.0,1.70435205]
[1758562948958,0.16929473,112540.0,112530.0,1.70435205]
[1758562951361,0.16929473,112540.0,112530.0,0.87875205]
[1758562951657,0.16929473,112540.0,112530.0,1.70415205]
[1758562951957,0.16929473,112540.0,112530.0,0.87875205]
[1758562952157,0.16929473,112540.0,112530.0,1.70415205]
[1758562954457,0.13743935,112540.0,112530.0,1.70415205]
[1758562954665,0.43050513,112540.0,112530.0,1.99721783]
[1758562955351,0.97357091,112540.0,112530.0,0.51795205]
[1758562955552,1.00542629,112540.0,112530.0,0.51795245]
[1758562956160,0.97357091,112540.0,112530.0,0.51755245]
[1758562956349,0.97357091,112540.0,112530.0,0.51795245]
[1758562957361,0.68050513,112540.0,112530.0,0.81101823]
[1758562959264,0.43050513,112540.0,112530.0,0.81101823]
[1758562960367,0.43050513,112540.0,112530.0,0.51795245]
[1758562960559,0.72357091,112540.0,112530.0,0.51795245]
[1758562961666,0.72357091,112540.0,112530.0,0.51755245]
[1758562962366,0.72357091,112540.0,112530.0,0.42916055]
[1758562962562,0.72357091,112540.0,112530.0,0.0124]
[1758562962563,1.29849207,112540.0,112530.0,0.0124]
[1758562962762,1.02372466,112540.0,112530.0,0.0124]
[1758562963163,1.02372466,112540.0,112530.0,0.012]
[1758562963466,1.02372466,112540.0,112530.0,0.0124]
[1758562964369,1.02372466,112540.0,112530.0,0.03364]
[1758562965260,1.84884466,112540.0,112530.0,0.03364]
[1758562965460,1.84884466,112540.0,112530.0,0.0475]
[1758562966170,1.2627131,112540.0,112530.0,0.0475]
[1758562966373,1.84884466,112540.0,112530.0,0.0475]
[1758562967271,1.84884466,112540.0,112530.0,0.0124]
[1758562967773,1.2627131,112540.0,112530.0,0.03364]
[1758562967969,1.84884466,112540.0,112530.0,0.0124]
[1758562968169,1.02372466,112540.0,112530.0,0.03364]
[1758562968772,1.84880466,112540.0,112530.0,0.03364]
[1758562970075,1.84880466,112540.0,112530.0,0.0475]
[1758562971669,1.02372466,112540.0,112530.0,0.0475]
[1758562971876,1.84872466,112540.0,112530.0,0.0475]
[1758562972068,1.84872466,112540.0,112530.0,0.03364]
[1758562972774,1.02372466,112540.0,112530.0,0.03364]
[1758562973374,1.84868466,112540.0,112530.0,0.03364]
[1758562973570,1.02372466,112540.0,112530.0,0.03364]
[1758562974372,1.84868466,112540.0,112530.0,0.03364]
[1758562974967,1.02372466,112540.0,112530.0,0.04723]
[1758562975777,1.84864466,112540.0,112530.0,0.40803]
[1758562977473,1.84864466,112540.0,112530.0,0.4968219]
[1758562978769,1.00542629,112540.0,112530.0,0.4968219]
[1758562978979,0.99413493,112540.0,112530.0,1.03988768]
[1758562979272,1.25494533,112540.0,112530.0,1.03988768]
[1758562979574,1.25534533,112540.0,112530.0,1.03188768]
[1758562979767,1.25534533,112540.0,112530.0,1.03288768]
[1758562980574,0.34172133,112540.0,112530.0,1.03288768]
[1758562980871,1.16656133,112540.0,112530.0,0.7398219]
[1758562981076,1.54841111,112540.0,112530.0,0.4898219]
[1758562981575,0.96187955,112540.0,112530.0,0.4898219]
[1758562981775,1.54841111,112540.0,112530.0,0.4898219]
[1758562983277,1.16656133,112540.0,112530.0,0.78288768]
[1758562983668,1.16656133,112540.0,112530.0,1.03288768]
[1758562984177,1.19841671,112540.0,112530.0,1.03288768]
[1758562985575,0.37357671,112540.0,112530.0,1.03288768]
[1758562985775,0.02560555,112540.0,112530.0,1.62595346]
[1758562986166,0.02520555,112540.0,112530.0,1.33288768]
[1758562986374,0.02560555,112540.0,112530.0,2.45059346]
[1758562986772,0.02520555,112540.0,112530.0,2.45059346]
[1758562986979,0.02560555,112540.0,112530.0,2.45059346]
[1758562987180,0.02520555,112540.0,112530.0,2.45059346]
[1758562987479,0.02560555,112540.0,112530.0,2.45059346]
[1758562988675,0.02520555,112540.0,112530.0,2.45059346]
[1758562988877,0.02560555,112540.0,112530.0,2.46035586]
[1758562989876,0.0014,112540.0,112530.0,2.46035586]
[1758562990276,0.0014,112540.0,112530.0,1.63571586]
[1758562990676,0.001,112540.0,112530.0,1.63571586]
[1758562990877,0.0014,112540.0,112530.0,1.62595346]
[1758562991181,0.0014,112540.0,112530.0,2.45039346]
[1758562991382,0.0014,112540.0,112530.0,2.45980822]
[1758562991576,0.0014,112540.0,112530.0,1.62595346]
[1758562991880,0.0014,112540.0,112530.0,1.33288768]
[1758562992180,0.0014,112540.0,112530.0,1.90728768]
[1758562992787,0.0014,112540.0,112530.0,1.08288768]
[1758562993080,0.0014,112540.0,112530.0,1.6142219]
[1758562993282,0.0014,112540.0,112530.0,1.90728768]
[1758562993682,0.0014,112540.0,112530.0,1.08288768]
[1758562993877,0.0014,112540.0,112530.0,1.90724768]
[1758562994580,0.02622734,112540.0,112530.0,1.90724768]
[1758562996784,0.02622734,112540.0,112530.0,2.20031346]
[1758563001699,0.02622734,112540.0,112530.0,2.22098392]
[1758563003589,0.02622734,112540.0,112530.0,2.47098392]